fUSD/lending_fUSD_20251105
["ID","MTS","AMOUNT","RATE_DAILY","PERIOD"]
[393247641,1762380838478,-180.43313349,0.00015599,2]
[393247642,1762380841403,-251.68855497,0.00015599,2]
[393247643,1762380844043,-207.43160238,0.00015599,2]
[393247644,1762380860247,-203.33677104,0.00015599,2]
[393247645,1762380863293,-318.59217476,0.00015599,2]
[393247646,1762380865624,-208.32539986,0.00015599,2]
[393247647,1762380869307,-157.05196529,0.00015599,2]
[393247648,1762380871498,-464.39129279,0.00015599,2]
[393247649,1762380873688,-432.65788821,0.00015599,2]
[393247650,1762380880121,195.90710942,0.00015598,2]
[393247651,1762380880149,500.0,0.00015598,2]
[393247652,1762380880177,239.15952007,0.00015598,2]
[393247653,1762380880276,339.96834851,0.00015598,2]
[393247654,1762380880861,-515.70348041,0.00015599,2]
[393247655,1762380883968,-187.2538,0.00015599,2]
[393247656,1762380886895,-195.0,0.00015599,2]
[393247657,1762380889024,-158.87637621,0.00015599,2]
[393247658,1762380901187,1200.0,0.00015598,2]
[393247659,1762380901236,300.0,0.00015598,2]
[393247660,1762380901918,-388.17968747,0.00015599,2]
[393247661,1762380904142,-360.28752108,0.00015599,2]
[393247662,1762380920281,-193.68201102,0.00015599,2]
[393247663,1762380924205,-236.48769242,0.00015599,2]
[393247664,1762380926502,-263.75882593,0.00015599,2]
[393247665,1762380926560,150.49798334,0.00015499,2]
[393247666,1762380928601,-164.4523553,0.00015599,2]
[393247667,1762380932081,-186.74251173,0.00015599,2]
[393247668,1762380933680,-575.6459569,0.00015599,2]
[393247669,1762380961326,300.0,0.00015598,2]
[393247670,1762380986674,2500.0,0.00015499,2]
[393247671,1762380995250,-234.2882,0.00015599,2]
[393247672,1762380998633,-275.25921738,0.00015599,2]
[393247673,1762381000399,-253.17005046,0.00015599,2]
[393247674,1762381004800,191.76966601,0.00015499,2]
[393247675,1762381021822,300.0,0.00015598,2]
[393247676,1762381056128,500.0,0.00015598,2]
[393247677,1762381072615,500.0,0.00015598,2]
[393247678,1762381081300,300.0,0.00015598,2]
[393247679,1762381085283,-259.25212382,0.00015599,2]
[393247680,1762381115549,-180.24228509,0.00015599,2]
[393247681,1762381117860,-191.65401312,0.00015599,2]
[393247682,1762381120676,-160.21090965,0.00015599,2]
[393247683,1762381122894,-316.14544581,0.00015599,2]
[393247684,1762381124461,-233.75909967,0.00015599,2]
[393247685,1762381126239,-232.98771708,0.00015599,2]
[393247686,1762381127906,-300.01246968,0.00015599,2]
[393247687,1762381129542,-283.21633046,0.00015599,2]
[393247688,1762381151755,185.18104062,0.00015499,2]
[393247689,1762381155970,1997.52633203,0.00015499,2]
[393247690,1762381156002,394.29836797,0.00015499,2]
[393247691,1762381157448,-395.50580309,0.00015599,2]
[393247692,1762381175331,-273.47022858,0.00015599,2]
[393247693,1762381178862,-181.30200253,0.00015599,2]
[393247694,1762381211767,234.2882,0.00015499,2]
[393247695,1762381230070,336.2675,0.00015499,2]
[393247696,1762381261425,300.0,0.00015598,2]
[393247697,1762381396301,500.0,0.00015598,2]
[393247698,1762381406595,162.43313776,0.00015,2]
[393247699,1762381416558,500.0,0.00015598,2]
[393247700,1762381562541,300.0,0.00015598,2]
[393247702,1762381602231,185.1810406,0.00015499,2]
[393247703,1762381681719,300.0,0.00015598,2]
[393247704,1762381705915,2256.14732764,0.0001421,7]
[393247705,1762381712367,33222.75999458,0.00015,3]
[393247706,1762381712392,64221.91528517,0.00015,3]
[393247707,1762381753127,-4066.52888091,0.00015599,2]
[393247713,1762381801196,300.0,0.00015598,2]
[393247720,1762381831774,-1447.06018569,0.00015599,2]
[393247721,1762381831786,-26646.56460567,0.00015599,2]
[393247722,1762381831894,-5022.77606537,0.00015599,2]
[393247762,1762381839929,-5483.1126143,0.00015599,2]
[393247764,1762381840562,-1.7e-07,0.00015599,2]
[393247765,1762381840574,-264443.78454407,0.00015599,2]
[393247766,1762381840583,-1000.0,0.00015599,2]
[393247767,1762381840592,-315.51822643,0.00016254,2]
[393247768,1762381840601,-152.0,0.00016416,2]
[393247769,1762381840611,-1096.52,0.00016438,2]
[393247770,1762381840620,-15180.15917268,0.000165,2]
[393247771,1762381840629,-500.0,0.00016679,2]
[393247772,1762381840638,-584.99,0.00016689,2]
[393247773,1762381840648,-593.29,0.00016698,2]
[393247774,1762381840658,-185.1810406,0.000167,2]
[393247775,1762381840668,-200.0,0.00016706,2]
[393247776,1762381840677,-300.13956751,0.00016712,2]
[393247777,1762381840686,-4071.45,0.00016712,2]
[393247778,1762381840696,-4587.86,0.0001684,2]
[393247779,1762381840705,-2148.4661098,0.00016886,2]
[393247780,1762381840714,-150.0,0.00016919,2]
[393247781,1762381840724,-12001.43,0.00016919,2]
[393247782,1762381840733,-500.0,0.00016986,2]
[393247783,1762381840743,-150.99,0.00016986,2]
[393247784,1762381840752,-323.85,0.00016986,2]
[393247785,1762381840761,-9999.99,0.00016986,2]
[393247786,1762381840770,-839.49,0.00016986,2]
[393247787,1762381840780,-14393.08507374,0.0001699,2]
[393247788,1762381840789,-2148.46610975,0.00016999,2]
[393247789,1762381840799,-500.0,0.00017,7]
[393247790,1762381840808,-500.0,0.00017,5]
[393247791,1762381840818,-500.0,0.00017,2]
[393247792,1762381840827,-250.0,0.00017,2]
[393247793,1762381840837,-541.13335366,0.00017,5]
[393247794,1762381840846,-500.0,0.00017,2]
[393247795,1762381840855,-500.0,0.00017,2]
[393247796,1762381840864,-500.0,0.00017,2]
[393247797,1762381840874,-160.4752958,0.00017,2]
[393247798,1762381840883,-5888.0,0.00017045,2]
[393247799,1762381840892,-2148.46610975,0.00017111,2]
[393247800,1762381840901,-250.0,0.00017159,2]
[393247801,1762381840912,-195.0,0.00017159,2]
[393247802,1762381840923,-250.0,0.00017159,2]
[393247803,1762381840932,-2148.46610975,0.00017224,2]
[393247804,1762381840941,-327.0,0.00017329,2]
[393247805,1762381840950,-2148.46610975,0.00017337,2]
[393247806,1762381840965,-168.0,0.00017342,2]
[393247807,1762381840974,-327.0,0.00017352,2]
[393247808,1762381840995,-2148.46610975,0.00017449,2]
[393247809,1762381841005,-893.58488772,0.00017546,2]
[393247810,1762381841015,-500.0,0.00017548,2]
[393247811,1762381841025,-477.11237395,0.00017548,2]
[393247812,1762381841035,-175.7117252,0.00017549,2]
[393247813,1762381841044,-2148.46610975,0.00017562,2]
[393247814,1762381841055,-5841.474,0.00017594,2]
[393247815,1762381841064,-2141.0,0.00017594,2]
[393247816,1762381841074,-500.0,0.00017616,2]
[393247817,1762381841083,-168.0,0.00017623,2]
[393247818,1762381841092,-221.75791629,0.00017642,2]
[393247819,1762381841101,-1272.0,0.00017649,2]
[393247820,1762381841110,-812.0,0.00017649,2]
[393247821,1762381841119,-905.0,0.00017649,2]
[393247822,1762381841128,-500.0,0.00017673,2]
[393247823,1762381841137,-500.0,0.00017673,2]
[393247824,1762381841146,-500.0,0.00017673,2]
[393247825,1762381841155,-500.0,0.00017673,2]
[393247826,1762381841164,-337.82055885,0.00017673,2]
[393247827,1762381841173,-500.0,0.00017673,2]
[393247828,1762381841182,-500.0,0.00017673,2]
[393247829,1762381841191,-500.0,0.00017673,2]
[393247830,1762381841200,-324.19895158,0.00017673,2]
[393247831,1762381841207,-503.00814931,0.00017673,2]
[393247832,1762381841214,-168.0,0.00017675,2]
[393247833,1762381841221,-2148.46610975,0.00017675,2]
[393247834,1762381841227,-1000.0,0.00017696,2]
[393247835,1762381841234,-500.0,0.00017699,2]
[393247836,1762381841242,-183.05138736,0.00017699,2]
[393247837,1762381841248,-240246.21324146,0.000177,2]
[393247838,1762381841254,-175.71172518,0.00017725,2]
[393247839,1762381841261,-162.50988356,0.00017752,2]
[393247840,1762381841268,-150.0,0.00017755,2]
[393247841,1762381841275,-500.0,0.00017755,2]
[393247842,1762381841281,-150.0,0.00017755,2]
[393247843,1762381841288,-150.0,0.00017755,2]
[393247844,1762381841295,-150.0,0.00017755,2]
[393247845,1762381841302,-150.0,0.00017755,2]
[393247846,1762381841310,-150.0,0.00017755,2]
[393247847,1762381841316,-500.0,0.00017755,2]
[393247848,1762381841324,-150.0,0.00017755,2]
[393247849,1762381841331,-150.0,0.00017755,2]
[393247850,1762381841338,-500.0,0.00017755,2]
[393247851,1762381841344,-150.0,0.00017755,2]
[393247852,1762381841355,-1000.0,0.00017756,2]
[393247853,1762381841362,-1000.0,0.00017759,2]
[393247854,1762381841371,-924.96152339,0.00017762,2]
[393247855,1762381841379,-150.0,0.00017767,2]
[393247856,1762381841387,-150.0,0.00017767,2]
[393247857,1762381841395,-152.07242879,0.00017767,2]
[393247858,1762381841402,-150.0,0.00017767,2]
[393247859,1762381841410,-150.0,0.00017767,2]
[393247860,1762381841417,-152.37917721,0.00017767,2]
[393247861,1762381841425,-252.41604948,0.00017767,2]
[393247862,1762381841435,-150.0,0.00017767,2]
[393247863,1762381841445,-150.0,0.00017767,2]
[393247864,1762381841454,-150.0,0.00017767,2]
[393247865,1762381841465,-152.50384114,0.00017767,2]
[393247866,1762381841474,-151.90277291,0.00017767,2]
[393247867,1762381841484,-241.58927028,0.00017767,2]
[393247868,1762381841495,-150.0,0.00017767,2]
[393247869,1762381841505,-150.0,0.00017767,2]
[393247870,1762381841514,-500.0,0.00017767,2]
[393247871,1762381841524,-500.0,0.00017767,2]
[393247872,1762381841533,-150.0,0.00017767,2]
[393247873,1762381841543,-150.0,0.00017767,2]
[393247874,1762381841556,-150.0,0.00017767,2]
[393247875,1762381841565,-150.0,0.00017767,2]
[393247876,1762381841575,-500.0,0.00017767,2]
[393247877,1762381841585,-150.0,0.00017767,2]
[393247878,1762381841597,-150.0,0.00017767,2]
[393247879,1762381841606,-1000.0,0.00017769,2]
[393247880,1762381841615,-158.69063049,0.00017781,2]
[393247881,1762381841625,-2500.0,0.00017786,3]
[393247882,1762381841635,-2148.46610975,0.00017787,2]
[393247883,1762381841645,-806.04837151,0.00017793,2]
[393247884,1762381841654,-1425.0,0.00017793,2]
[393247885,1762381841665,-2500.0,0.00017794,3]
[393247886,1762381841674,-1845.0,0.000178,2]
[393247887,1762381841684,-2500.0,0.00017803,3]
[393247888,1762381841693,-327.0,0.00017804,2]
[393247889,1762381841704,-2500.0,0.00017812,3]
[393247890,1762381841713,-1000.0,0.00017819,2]
[393247891,1762381841723,-150.0,0.0001782,2]
[393247892,1762381841733,-150.0,0.0001782,2]
[393247893,1762381841743,-150.0,0.0001782,2]
[393247894,1762381841756,-203.397,0.0001782,2]
[393247895,1762381841766,-303.2578,0.0001782,2]
[393247896,1762381841777,-2500.0,0.00017821,3]
[393247897,1762381841787,-4038.815,0.00017821,2]
[393247898,1762381841797,-150.0,0.00017821,2]
[393247899,1762381841808,-2500.0,0.0001783,3]
[393247900,1762381841818,-39944.35351664,0.0001783,2]
[393247901,1762381841828,-1000.0,0.00017835,2]
[393247902,1762381841839,-2500.0,0.00017838,3]
[393247903,1762381841848,-2500.0,0.00017847,3]
[393247904,1762381841858,-500.0,0.00017855,2]
[393247905,1762381841869,-200.0,0.00017855,2]
[393247906,1762381841879,-500.0,0.00017856,2]
[393247907,1762381841889,-500.0,0.00017856,2]
[393247908,1762381841899,-200.0,0.00017856,2]
[393247909,1762381841908,-2500.0,0.00017856,3]
[393247910,1762381841920,-158.69063049,0.00017863,2]
[393247911,1762381841930,-1000.0,0.00017864,2]
[393247912,1762381841940,-2500.0,0.00017865,3]
[393247913,1762381841950,-1425.0,0.00017865,2]
[393247914,1762381841964,-500.0,0.00017873,2]
[393247915,1762381841974,-404.77706377,0.00017873,2]
[393247916,1762381841983,-500.0,0.00017873,2]
[393247917,1762381841994,-2500.0,0.00017874,3]
[393247918,1762381842004,-2500.0,0.00017882,3]
[393247919,1762381842014,-195.98149101,0.00017887,2]
[393247920,1762381842025,-168.0,0.00017887,2]
[393247921,1762381842035,-1068.03847661,0.00017887,2]
[393247922,1762381842045,-2500.0,0.00017891,3]
[393247923,1762381842054,-500.0,0.00017892,2]
[393247924,1762381842063,-150.0,0.00017892,2]
[393247925,1762381842073,-179.8382956,0.00017892,2]
[393247926,1762381842083,-150.0,0.00017892,2]
[393247927,1762381842092,-461.02653668,0.00017892,2]
[393247928,1762381842102,-500.0,0.00017892,2]
[393247929,1762381842111,-150.0,0.00017892,2]
[393247930,1762381842121,-1000.0,0.00017894,2]
[393247931,1762381842131,-507.91610017,0.000179,3]
[393247932,1762381842141,-1323.74375882,0.000179,2]
[393247933,1762381842151,-2500.0,0.000179,3]
[393247934,1762381842161,-5000.0,0.000179,2]
[393247935,1762381842170,-185.1810406,0.000179,2]
[393247936,1762381842180,-195.98149101,0.000179,2]
[393247937,1762381842190,-175.71172518,0.000179,2]
[393247938,1762381842199,-18595.50112646,0.000179,2]
[393247939,1762381842209,-2148.46610975,0.000179,2]
[393247940,1762381842218,-620.6246043,0.000179,2]
[393247941,1762381842228,-150.0,0.00017904,2]
[393247942,1762381842239,-150.0,0.00017904,2]
[393247943,1762381842249,-150.0,0.00017904,2]
[393247944,1762381842258,-150.0,0.00017904,2]
[393247945,1762381842268,-150.0,0.00017904,2]
[393247946,1762381842277,-150.0,0.00017904,2]
[393247947,1762381842286,-500.0,0.00017904,2]
[393247948,1762381842296,-500.0,0.00017904,2]
[393247949,1762381842306,-150.0,0.00017904,2]
[393247950,1762381842315,-150.0,0.00017904,2]
[393247951,1762381842325,-500.0,0.00017904,2]
[393247952,1762381842335,-150.0,0.00017904,2]
[393247953,1762381842344,-150.0,0.00017904,2]
[393247954,1762381842354,-303.2578,0.0001793,2]
[393247955,1762381842364,-150.0,0.00017942,2]
[393247956,1762381842373,-698.44,0.00017945,2]
[393247957,1762381842384,-698.44,0.00017945,2]
[393247958,1762381842394,-698.44,0.00017945,2]
[393247959,1762381842404,-1365.44,0.00017945,2]
[393247960,1762381842414,-698.44,0.00017945,2]
[393247961,1762381842423,-698.44,0.00017945,2]
[393247962,1762381842433,-158.69063049,0.00017945,2]
[393247963,1762381842443,-931.96152339,0.00017948,2]
[393247964,1762381842452,-500.0,0.00017973,2]
[393247965,1762381842462,-618.2018509,0.00017973,2]
[393247966,1762381842471,-500.0,0.00017973,2]
[393247967,1762381842481,-481.20917835,0.00017973,2]
[393247968,1762381842492,-500.0,0.00017973,2]
[393247969,1762381842502,-500.0,0.00017973,2]
[393247970,1762381842511,-500.0,0.00017973,2]
[393247972,1762381842522,-500.0,0.00017973,2]
[393247975,1762381842531,-500.26122122,0.00017973,2]
[393247977,1762381842540,-500.0,0.00017973,2]
[393247978,1762381842550,-516.00653523,0.00017973,2]
[393247979,1762381842559,-324.3529394,0.00017973,2]
[393247980,1762381842568,-500.0,0.00017973,2]
[393247981,1762381842578,-500.0,0.00017973,2]
[393247982,1762381842587,-542.89918106,0.00017973,2]
[393247983,1762381842596,-500.0,0.00017973,2]
[393247984,1762381842606,-500.0,0.00017973,2]
[393247985,1762381842616,-359.52575001,0.00017973,2]
[393247986,1762381842625,-500.0,0.00017973,2]
[393247987,1762381842634,-500.0,0.00017973,2]
[393247988,1762381842644,-500.0,0.00017973,2]
[393247989,1762381842653,-500.0,0.00017973,2]
[393247990,1762381842663,-974.66,0.00017973,2]
[393247991,1762381842673,-253.31699392,0.0001799,2]
[393247992,1762381842682,-211.1136905,0.0001799,2]
[393247993,1762381842692,-549.09,0.0001799,2]
[393247994,1762381842702,-549.09,0.0001799,2]
[393247995,1762381842712,-549.09,0.0001799,2]
[393247997,1762381842721,-549.09,0.0001799,2]
[393247999,1762381842731,-549.09,0.0001799,2]
[393248000,1762381842740,-549.09,0.0001799,2]
[393248001,1762381842750,-549.09,0.0001799,2]
[393248002,1762381842760,-548.65,0.0001799,2]
[393248003,1762381842770,-549.09,0.0001799,2]
[393248004,1762381842779,-549.09,0.0001799,2]
[393248005,1762381842790,-549.09,0.0001799,2]
[393248006,1762381842799,-549.09,0.0001799,2]
[393248007,1762381842809,-549.09,0.0001799,2]
[393248008,1762381842819,-549.09,0.0001799,2]
[393248009,1762381842829,-549.09,0.0001799,2]
[393248010,1762381842838,-500.0,0.00017999,2]
[393248011,1762381842847,-500.0,0.00017999,2]
[393248012,1762381842857,-300.0,0.00017999,2]
[393248013,1762381842867,-300.0,0.00017999,2]
[393248014,1762381842876,-500.0,0.00017999,2]
[393248015,1762381843055,-666.0,0.00017999,2]
[393248016,1762381843065,-300.0,0.00017999,2]
[393248017,1762381843074,-3426.0,0.00018,2]
[393248018,1762381843084,-20000.0,0.00018,2]
[393248019,1762381843093,-107785.4366208,0.00018,2]
[393248020,1762381843111,-23205.0295447,0.00018,2]
[393248022,1762381843123,-777.80875863,0.00018,2]
[393248024,1762381843134,-8681.10550504,0.00018,2]
[393248025,1762381843147,-8947.21879473,0.00018,2]
[393248026,1762381843157,-8943.78386462,0.00018,2]
[393248027,1762381843168,-9077.54866152,0.00018,2]
[393248028,1762381843179,-8943.84023489,0.00018,2]
[393248029,1762381843247,-31241.27540709,0.00018,2]
[393248030,1762381843261,-440.45145431,0.00018,2]
[393248031,1762381843272,-362.38083996,0.00018,2]
[393248032,1762381843283,-1370.5957456,0.00018,2]
[393248034,1762381843294,-519.230507,0.00018,2]
[393248036,1762381843305,-1791.18872929,0.00018,2]
[393248037,1762381843323,-1012.13556112,0.00018,2]
[393248042,1762381847750,250.05494001,0.00015598,2]
[393248043,1762381847791,500.0,0.00015598,2]
[393248044,1762381847848,500.0,0.00015598,2]
[393248045,1762381847902,500.0,0.00015598,2]
[393248046,1762381847936,517.84451115,0.00015598,2]
[393248047,1762381850830,351.65370514,0.00015598,2]
[393248048,1762381940016,10000.01,0.00015499,2]
[393248049,1762381940043,10000.01,0.00015499,2]
[393248050,1762381940070,10000.01,0.00015499,2]
[393248051,1762381940096,10000.01,0.00015499,2]
[393248052,1762381940122,10000.01,0.00015499,2]
[393248053,1762381940147,10000.01,0.00015499,2]
[393248054,1762381940172,10000.01,0.00015499,2]
[393248055,1762381940198,10000.01,0.00015499,2]
[393248056,1762381940222,10000.01,0.00015499,2]
[393248057,1762381940247,10000.01,0.00015499,2]
[393248058,1762381941119,-299.14136535,0.00015499,2]
[393248059,1762381944251,-231.85715541,0.00015499,2]
[393248060,1762381949021,-156.315875,0.00015499,2]
[393248061,1762381952334,-184.34202399,0.00015499,2]
[393248062,1762381958858,300.03034191,0.00015498,2]
[393248063,1762381958890,500.0,0.00015498,2]
[393248064,1762381958923,198.59806729,0.00015498,2]
[393248065,1762381959085,431.12963827,0.00015498,2]
[393248066,1762381959450,-354.75469372,0.00015499,2]
[393248067,1762381961399,500.0,0.00015498,2]
[393248068,1762381961456,500.0,0.00015498,2]
[393248069,1762381961509,500.0,0.00015498,2]
[393248070,1762381961560,500.0,0.00015498,2]
[393248071,1762381961688,240.81811177,0.00015498,2]
[393248072,1762381961723,-444.03740239,0.00015499,2]
[393248073,1762381964336,-423.99,0.00015499,2]
[393248074,1762381968274,-151.0,0.00015499,2]
[393248075,1762381973747,-151.0,0.00015499,2]
[393248076,1762381975906,-333.61,0.00015499,2]
[393248077,1762381980760,-166.39,0.00015499,2]
[393248078,1762381981884,150.0,0.00015498,2]
[393248079,1762381983142,-151.0,0.00015499,2]
[393248080,1762382000282,-151.0,0.00015499,2]
[393248081,1762382002009,-162.18,0.00015499,2]
[393248082,1762382004244,151.0,0.00015496,2]
[393248083,1762382005049,-288.03560919,0.00015499,2]
[393248084,1762382006846,317.38266823,0.00015399,2]
[393248085,1762382008372,-151.0,0.00015499,2]
[393248086,1762382013297,-250.0,0.00015499,2]
[393248087,1762382030797,-229.81438506,0.00015499,2]
[393248088,1762382032574,702.20971146,0.00015399,2]
[393248089,1762382034936,-265.14035515,0.00015499,2]
[393248090,1762382037361,-205.04525979,0.00015499,2]
[393248091,1762382046629,5008.84146107,0.00015399,2]
[393248092,1762382046652,292.15413893,0.00015399,2]
[393248093,1762382077066,500.0,0.00015399,2]
[393248094,1762382090927,-164.61317085,0.00015499,2]
[393248095,1762382092487,-320.573624,0.00015499,2]
[393248096,1762382101192,1200.0,0.00015498,2]
[393248097,1762382101521,1000.0,0.00015399,2]
[393248098,1762382102128,296.0,0.00015498,2]
[393248099,1762382109869,173.40545209,0.00015399,2]
[393248100,1762382171600,151.0,0.00015474,2]
[393248101,1762382188827,151.0,0.00015463,2]
[393248102,1762382206639,151.0,0.00015454,2]
[393248104,1762382223791,151.0,0.00015442,2]
[393248105,1762382239950,151.0,0.00015434,2]
[393248106,1762382240314,-173.29557802,0.00015499,2]
[393248107,1762382246263,300.0,0.00015399,2]
[393248108,1762382256903,151.0,0.00015432,2]
[393248109,1762382274776,151.0,0.0001543,2]
[393248110,1762382319840,2500.0,0.00015399,2]
[393248111,1762382345488,173.40545207,0.00015399,2]
[393248112,1762382401535,300.0,0.00015498,2]
[393248113,1762382435293,-260.23885041,0.00015499,2]
[393248114,1762382483653,2208.04495691,0.00015399,2]
[393248115,1762382483677,291.95504309,0.00015399,2]
[393248116,1762382532675,151.0,0.00015499,2]
[393248117,1762382533290,151.0,0.00015499,2]
[393248118,1762382533933,208.0,0.00015499,2]
[393248119,1762382542886,1664.67541701,0.00015399,2]
[393248120,1762382575970,173.40545207,0.00015399,2]
[393248121,1762382585015,500.0,0.00015399,2]
[393248122,1762382609421,1000.0,0.00015399,2]
[393248123,1762382652518,2500.0,0.00015399,2]
[393248125,1762382705883,-236.05492124,0.00015499,2]
[393248126,1762382707985,-384.83639826,0.00015499,2]
[393248127,1762382709522,-170.02715145,0.00015499,2]
[393248128,1762382712819,-203.07658498,0.00015499,2]
[393248130,1762382791253,173.40545207,0.00015399,2]
[393248132,1762382821559,300.0,0.00015498,2]
[393248134,1762382823358,621.87,0.00013699,2]
[393248136,1762382886708,300.0,0.00015498,2]
[393248137,1762383001191,300.0,0.00015498,2]
[393248142,1762383031948,-254.890961,0.00015499,2]
[393248143,1762383031961,-94069.14073622,0.00015499,2]
[393248144,1762383031971,-49913.82607253,0.00015499,2]
[393248145,1762383031982,-32240.79698632,0.00015499,2]
[393248146,1762383031992,-35101.11290317,0.00015499,2]
[393248147,1762383032003,-6598.37120863,0.00015499,2]
[393248148,1762383032013,-17508.75777132,0.00015499,2]
[393248149,1762383032025,-462.11065713,0.00015499,2]
[393248150,1762383032042,-992.4052018,0.00015499,2]
[393248151,1762383032146,-1614.31558144,0.00015499,2]
[393248187,1762383037883,-1038.82018989,0.00015499,2]
[393248199,1762383040159,-1.7e-07,0.00015499,2]
[393248200,1762383040174,-73542.98132612,0.00015499,2]
[393248201,1762383040184,-1000.0,0.00015499,2]
[393248202,1762383040194,-182.50894319,0.00015499,2]
[393248203,1762383040204,-500.0,0.00015598,2]
[393248204,1762383040213,-152.0,0.00016343,2]
[393248205,1762383040224,-589.41461623,0.00016438,2]
[393248206,1762383040235,-1000.0,0.00016639,2]
[393248207,1762383040246,-243.76,0.00016644,2]
[393248208,1762383040256,-150.0,0.0001665,2]
[393248209,1762383040266,-5647.0,0.00016669,2]
[393248210,1762383040276,-150.99,0.00016683,2]
[393248211,1762383040286,-9184.65,0.00016683,2]
[393248213,1762383040300,-9999.99,0.00016683,2]
[393248214,1762383040309,-250.0,0.00016769,2]
[393248215,1762383040319,-1629.35323353,0.00016886,2]
[393248216,1762383040328,-420.0,0.00016953,2]
[393248217,1762383040338,-698.44,0.00016986,2]
[393248218,1762383040347,-698.44,0.00016986,2]
[393248219,1762383040356,-698.44,0.00016986,2]
[393248220,1762383040365,-1629.35323352,0.00016999,2]
[393248221,1762383040378,-250.0,0.00017,2]
[393248222,1762383040387,-500.0,0.00017,2]
[393248223,1762383040397,-698.44,0.00017041,2]
[393248224,1762383040407,-698.44,0.00017041,2]
[393248225,1762383040418,-250.0,0.00017049,2]
[393248226,1762383040428,-200.0,0.00017059,2]
[393248227,1762383040438,-1629.35323352,0.00017111,2]
[393248228,1762383040447,-698.44,0.00017141,2]
[393248229,1762383040458,-169.01,0.00017178,2]
[393248230,1762383040468,-1602.0,0.00017181,2]
[393248231,1762383040477,-5647.0,0.00017199,2]
[393248232,1762383040487,-1602.0,0.00017204,2]
[393248233,1762383040496,-517.0,0.00017217,2]
[393248234,1762383040506,-1629.35323352,0.00017224,2]
[393248235,1762383040515,-549.09,0.00017278,2]
[393248236,1762383040525,-1629.35323352,0.00017337,2]
[393248237,1762383040536,-1602.0,0.00017343,2]
[393248238,1762383040546,-1629.35323352,0.00017449,2]
[393248239,1762383040556,-1602.0,0.00017459,2]
[393248240,1762383040569,-1629.35323352,0.00017562,2]
[393248241,1762383040579,-243.76,0.00017569,2]
[393248242,1762383040590,-500.0,0.00017589,2]
[393248243,1762383040599,-517.0,0.00017602,2]
[393248244,1762383040609,-268.63021333,0.00017655,2]
[393248245,1762383040619,-1629.35323352,0.00017675,2]
[393248246,1762383040630,-404.03920198,0.00017689,2]
[393248247,1762383040639,-221.75791629,0.00017689,2]
[393248248,1762383040650,-500.0,0.00017699,2]
[393248249,1762383040660,-162.50988356,0.00017721,2]
[393248250,1762383040670,-893.58488772,0.00017737,2]
[393248251,1762383040679,-517.0,0.00017742,2]
[393248252,1762383040689,-1602.0,0.00017772,2]
[393248253,1762383040700,-1629.35323352,0.00017787,2]
[393248254,1762383040710,-1602.0,0.00017796,2]
[393248255,1762383040721,-168.24423306,0.00017799,2]
[393248256,1762383040730,-1000.0,0.000178,2]
[393248257,1762383040741,-1324.06469176,0.00017802,2]
[393248258,1762383040750,-1086.2706,0.00017808,2]
[393248259,1762383040759,-162.717,0.00017812,2]
[393248260,1762383040771,-3231.052,0.0001782,2]
[393248261,1762383040780,-399.19879,0.0001782,2]
[393248262,1762383040792,-472.27503322,0.00017829,2]
[393248263,1762383040801,-812.0,0.00017834,2]